Cogmind - Beta 13 @@@ ROGUE MODE // 2024.06.14 @ 11:28:07 Player: anthonyiye Result: Destroyed by G-34 Mercenary with Small Laser Performance ------------- Evolutions (1) 500 Regions Visited (3) 600 Robots Destroyed (67) 335 Value Destroyed (1769) 1769 Prototype IDs (4) 80 Alien Tech Used (0) 0 Bonus (237) 237 TOTAL SCORE: 3521 Bonus ------- High Alert Combat Kills 8 Follower Combat Kills 259 Friendly Fire -30 Cogmind --------- Core Integrity 0/400 Matter 230/300 Energy 158/160 System Corruption 5% Temperature Cool (65) Movement Treading (160) Location -9/Storage Parts ------- > --- POWER (1) -------- Light Nuclear Core > --- PROPULSION (2) --- Light Treads Light Treads > --- UTILITY (4) ------ Large Storage Unit Sensor Array (fused) Signal Interpreter Light Regenerative Plating > --- WEAPON (2) ------- Improved Assault Rifle Improved Assault Rifle > --- INVENTORY (15) --- Improved Ion Engine Light Treads Light Treads Light Treads Improved Treads Improved Heat Sink Huge Storage Unit Sensor Array Signal Interpreter Hardened Light Armor Plating Improved Medium Laser Improved Assault Rifle Mini Assault Cannon Grenade Launcher Mining Claw Peak State ------------ > --- POWER ------------ Light Nuclear Core > --- PROPULSION ------- Light Treads Light Treads > --- UTILITY ---------- Large Storage Unit Sensor Array Signal Interpreter Light Regenerative Plating > --- WEAPON ----------- Improved Assault Rifle Improved Assault Rifle > --- INVENTORY -------- Improved Ion Engine Light Treads Light Treads Light Treads Improved Treads Improved Heat Sink Huge Storage Unit Sensor Array Signal Interpreter Improved Medium Laser Advanced Beam Cannon Improved Assault Rifle Mini Assault Cannon Grenade Launcher Mining Claw [Rating: 22] Favorites ----------- Power Light Nuclear Core Engine Ion Engine Power Core Light Nuclear Core Propulsion Light Treads Treads Light Treads Utility Large Storage Unit Device Sensor Array Storage Large Storage Unit Processor Signal Interpreter Protection Light Regenerative Plating Weapon Improved Assault Rifle Energy Gun Medium Laser Energy Cannon Light EM Pulse Cannon Ballistic Gun Improved Assault Rifle Slashing Weapon Mining Claw Build | -11 -10 -9 -9 ------- Run | Yrd Mat Mat Sto Slots Evolved 2 | . . 2 . Power . | . . . . Propulsion . | . . . . Utility 2 | . . 2 . Weapon . | . . . . Parts Attached 48 | 6 5 16 21 Power 5 | 1 1 2 1 Engine 3 | 1 1 1 . Core 2 | . . 1 1 Reactor . | . . . . Propulsion 13 | 2 . 5 6 Treads 13 | 2 . 5 6 Leg . | . . . . Wheel . | . . . . Hover . | . . . . Flight . | . . . . Utility 9 | 1 2 4 2 Device 3 | . . 3 . Storage 2 | 1 1 . . Processor 2 | . 1 1 . Hackware . | . . . . Protection 2 | . . . 2 Artifact . | . . . . Weapon 21 | 2 2 5 12 Energy Gun 6 | 1 2 1 2 Energy Cannon 2 | . . 2 . Ballistic Gun 9 | 1 . 1 7 Ballistic Cannon . | . . . . Launcher . | . . . . Special Weapon . | . . . . Impact Weapon . | . . . . Slashing Weapon 4 | . . 1 3 Piercing Weapon . | . . . . Special Melee Weapon . | . . . . Unidentified Prototypes 2 | . . . 2 Corrupted Parts 1 | . . 1 . System Corruption 5 | . . 5 . Parts Lost 14 | . 2 12 . Power 2 | . . 2 . Propulsion 4 | . . 4 . Utility 1 | . . 1 . Weapon 7 | . 2 5 . Highest Loss Streak 6 | . 1 6 . To Critical Strikes . | . . . . Average Slot Usage (%) 92 | . 95 81 99 Engine 6 | . 14 5 . Core 5 | . . 5 11 Treads 21 | . 28 15 22 Device 8 | . . 13 11 Storage 11 | . 14 11 11 Processor 10 | . 10 11 11 Protection 3 | . . . 10 Energy Gun 7 | . 15 6 1 Energy Cannon 2 | . . 7 . Ballistic Gun 10 | . 12 1 18 Slashing Weapon 1 | . . 3 . Naked Turns . | . . . . Heaviest Build 36 | 14 30 34 36 Greatest Support 46 | 40 40 46 40 Greatest Overweight (x) 10 | . . 10 . Average Overweight (x) . | . . . . Largest Inventory Capacity 15 | 8 15 15 15 Average Capacity 13 | 7 9 15 15 Most Carried 15 | 6 12 15 15 Average Carried 12 | 3 8 12 14 Final Capacity 15 | 8 15 15 15 Final Carried 15 | 6 12 15 15 Class Distribution -------------------- 64% | Scavenger-Mutant 32% | Mutant Dominant Class ---------------- Mutant | -10/Materials Scavenger-Mutant | -9/Materials Scavenger-Mutant | -9/Storage Resources | -11 -10 -9 -9 ----------- Run | Yrd Mat Mat Sto Matter Collected 1382 | 248 380 152 602 Remotely . | . . . . Salvage Created 2483 | . 691 756 1036 Parts 146 | . 34 45 67 Haulers Intercepted 7 | . 2 2 3 Recyclers Shooed 5 | . 3 . 2 Parts Field Recycled . | . . . . Retrieved Matter . | . . . . Parts Self-Destructed . | . . . . Prevented . | . . . . Kills | -11 -10 -9 -9 ------- Run | Yrd Mat Mat Sto Combat Hostiles Destroyed 51 | . 12 17 22 Melee 2 | . . 2 . Guns 45 | . 12 12 21 Cannons 4 | . . 3 1 Classes Destroyed 9 | . 6 1 2 Builder 2 | . . . 2 Hauler 7 | . 2 2 3 Recycler 1 | . 1 . . Operator 2 | . 1 . 1 Watcher 4 | . 2 2 . Swarmer 12 | . 2 6 4 Grunt 29 | . 10 7 12 Duelist 1 | . . . 1 Sentry 9 | . . 4 5 Best Kill Streak 4 | . 2 4 4 Combat Bots Only 4 | . 2 3 4 Max Kills in Single Turn 2 | . 1 2 1 Gunslinging 1 | . . 1 . Exploded . | . . . . Melee 1 | . . 1 . Uniques/NPCs Destroyed . | . . . . Combat | -11 -10 -9 -9 -------- Run | Yrd Mat Mat Sto Hostile Shots Fired 310 | . 68 135 107 Missed 80 | . 20 29 31 Damage Taken 2736 | . 564 1267 905 Core 460 | . 53 279 128 Absorbed by Shields . | . . . . Regen/Repaired (Parts) 101 | . . . 101 Core Remaining (%) 89 | 100 78 . . Volleys Fired 188 | . 67 52 69 Largest 2 | . 2 2 2 Hottest 133 | . 115 133 112 Shots Fired 368 | . 131 95 142 Gun 335 | . 131 71 133 Cannon 33 | . . 24 9 Launcher . | . . . . Special . | . . . . Kinetic 197 | . 56 14 127 Thermal 135 | . 57 72 6 Explosive . | . . . . Electromagnetic 36 | . 18 9 9 Robot Hit Streak 16 | . 7 16 14 Robot Miss Streak 6 | . 5 3 6 Penetration Max . | . . . . Secondary Targets 4 | . 1 1 2 Max Gunslinging Chain 1 | . 1 1 1 Shots Hit Robots 242 | . 82 67 93 Core Hits 95 | . 30 27 38 Critical Kills . | . . . . Critical Parts Destroyed . | . . . . Critical Strikes 9 | . 6 3 . Burn 9 | . 6 3 . Melee Attacks 17 | . . 12 5 Impact . | . . . . Slashing 17 | . . 12 5 Piercing . | . . . . Sneak Attacks 2 | . . 2 . Combat Hostiles . | . . . . Follow-up Attacks . | . . . . Damage Inflicted 3937 | . 1127 1322 1488 Guns 3206 | . 1113 683 1410 Cannons 426 | . . 368 58 Explosions 39 | . . 39 . Melee 231 | . . 231 . Ramming 35 | . 14 1 20 Kinetic 2007 | . 456 156 1395 Thermal 1246 | . 481 750 15 Explosive . | . . . . Electromagnetic 418 | . 176 184 58 Impact . | . . . . Slashing 231 | . . 231 . Piercing . | . . . . Highest Corruption 5 | . . 5 5 Average Corruption 5 | . . 5 5 Corruption Purged . | . . . . Corruption Blocked . | . . . . Effects 36 | . . . 36 Message Errors 6 | . . . 6 Matter Fused 10 | . . . 10 Heat Flow Errors 2 | . . . 2 Energy Discharges 4 | . . . 4 Parts Fused 1 | . . . 1 Data Loss (minor) 3 | . . . 3 Data Loss (major) 2 | . . . 2 Misfires 5 | . . . 5 Alerts 2 | . . . 2 Weapon Failures 1 | . . . 1 Overload Shots . | . . . . Overflow Damage 4 | . . 4 . Projectiles . | . . . . Explosions . | . . . . Melee 4 | . . 4 . Knockbacks 1 | . . . 1 Impact 1 | . . . 1 Kinetic . | . . . . Secondary . | . . . . Self-Inflicted Damage . | . . . . Shots . | . . . . Rammed 4 | . 1 1 2 Targets Rammed 6 | . 1 1 4 Kicked . | . . . . Crushed 2 | . . . 2 Highest Temperature 363 | . 363 70 279 Average Temperature 50 | . 57 20 62 Received Heat Transfer 1206 | . 279 540 387 Effects 2 | . . . 2 Interference 2 | . . . 2 Siege Activations . | . . . . Robots Corrupted . | . . . . Combat Hostiles . | . . . . Parts Fried 1 | . . 1 . Impact Corruptions . | . . . . Robots Melted 1 | . 1 . . Combat Hostiles . | . . . . Parts Melted 8 | . 4 4 . Heat Transferred 3861 | . 1850 1974 37 Parts Sabotaged . | . . . . Parts Stolen . | . . . . Parts Stripped . | . . . . Power Chain Reactions 1 | . . 1 . Alert | -11 -10 -9 -9 ------- Run | Yrd Mat Mat Sto Peak Influence 408 | . 160 354 408 Initial 45 | . . 45 7 Average 114 | . 58 117 167 Maximum Alert Level 2 | . . 1 2 Low Security (%) 81 | 100 100 80 63 Level 1 18 | . . 19 35 Level 2 . | . . . . Level 3 . | . . . . Level 4 . | . . . . Level 5 . | . . . . High Security . | . . . . Max Security . | . . . . Squads Dispatched 8 | . 4 . 4 Investigation 3 | . 2 . 1 Extermination . | . . . . Reinforcement 3 | . 2 . 1 Assault 2 | . . . 2 Garrison . | . . . . Intercept . | . . . . Searches Triggered . | . . . . Construction Impeded . | . . . . Haulers Reinforced . | . . . . Active Scanning Responses . | . . . . Cargo Convoy Interrupts . | . . . . Stealth | -11 -10 -9 -9 --------- Run | Yrd Mat Mat Sto Distress Signals 6 | . 1 1 4 Communications Jammed . | . . . . Distress Signals . | . . . . Times Spotted 91 | . 25 25 41 Peak Tracking Total 8 | . 5 5 8 Tactical Retreats 4 | . . 1 3 Traps | -11 -10 -9 -9 ------- Run | Yrd Mat Mat Sto Traps Triggered 1 | . 1 . . Indirectly . | . . . . Trap Hack Attempts . | . . . . Triggered . | . . . . Disarmed . | . . . . Reprogrammed . | . . . . Reused . | . . . . Traps Extracted . | . . . . Installed . | . . . . Triggered 1 | . . . 1 Machines | -11 -10 -9 -9 ---------- Run | Yrd Mat Mat Sto Machines Disabled 3 | . . 1 2 Max in Single Turn 1 | . . 1 1 Machines Repaired . | . . . . Machines Dismantled . | . . . . Machines Sabotaged . | . . . . Overloaded Fab Kills . | . . . . Hacking | -11 -10 -9 -9 --------- Run | Yrd Mat Mat Sto Machines Accessed 18 | . 5 6 7 Terminals 18 | . 5 6 7 Fabricators . | . . . . Repair Stations . | . . . . Recycling Units . | . . . . Scanalyzers . | . . . . Garrison Access . | . . . . Total Hacks 47 | . 14 20 13 Successful 24 | . 6 11 7 Failed 23 | . 8 9 6 Catastrophic 6 | . 3 2 1 Database Lockouts . | . . . . Manual 10 | . 4 5 1 Terminals 47 | . 14 20 13 Fabricators . | . . . . Repair Stations . | . . . . Recycling Units . | . . . . Scanalyzers . | . . . . Garrison Access . | . . . . Terminal Hacks 24 | . 6 11 7 Record 1 | . . . 1 Prototype ID Bank 1 | . 1 . . Open Door 3 | . . . 3 Branch Access Points 1 | . . 1 . Emergency Access Points 2 | . 1 1 . Terminal Index 1 | . . 1 . Alert Level 2 | . 1 1 . Unreport Threat 1 | . . 1 . Locate Traps 5 | . . 3 2 Maintenance Status 1 | . 1 . . Extermination Status 1 | . . . 1 Zone Layout 5 | . 2 3 . Fabricator Hacks . | . . . . Repair Station Hacks . | . . . . Recycling Unit Hacks . | . . . . Scanalyzer . | . . . . Garrison Access Hacks . | . . . . Unauthorized Hacks . | . . . . Terminals . | . . . . Fabricators . | . . . . Repair Stations . | . . . . Recycling Units . | . . . . Scanalyzers . | . . . . Garrison Access . | . . . . Data Cores Recovered . | . . . . Used . | . . . . Hacking Detections 14 | . 5 5 4 Full Trace Events 1 | . 1 . . Feedback Events . | . . . . Feedback Blocked . | . . . . Robot Schematics Acquired . | . . . . Robots Built . | . . . . Authchips . | . . . . Time . | . . . . Total Robot Build Rating . | . . . . Part Schematics Acquired . | . . . . Parts Built . | . . . . Authchips . | . . . . Time . | . . . . Total Part Build Rating . | . . . . Parts Repaired . | . . . . Time . | . . . . Parts Recycled . | . . . . Recycled Matter . | . . . . Retrieved Matter . | . . . . Retrieved Components . | . . . . Parts Scanalyzed . | . . . . Part Schematics Acquired . | . . . . Parts Damaged . | . . . . Bothacking | -11 -10 -9 -9 ------------ Run | Yrd Mat Mat Sto Used RIF Installer . | . . . . Robots Hacked . | . . . . Non-combat . | . . . . Combat . | . . . . Robot Hacks Applied . | . . . . Relay Couplers Released . | . . . . Fabnet Peak Effective % . | . . . . Robots Rewired . | . . . . Allies Hacked . | . . . . Hacks Repelled . | . . . . Allies | -11 -10 -9 -9 -------- Run | Yrd Mat Mat Sto Total Allies 12 | . . . 12 Largest Group 10 | . . . 10 Highest-Rated Group 88 | . . . 88 Highest-Rated Ally 31 | . . . 31 Total Orders . | . . . . Ally Attacks 70 | . . . 70 Total Damage 761 | . . . 761 Kills 9 | . . . 9 Allies Corrupted . | . . . . Allies Melted . | . . . . Intel | -11 -10 -9 -9 ------- Run | Yrd Mat Mat Sto Robot Analysis Total . | . . . . Derelict Logs Recovered . | . . . . Drone Launches . | . . . . Drone Recoveries . | . . . . Exploration | -11 -10 -9 -9 ------------- Run | Yrd Mat Mat Sto Turns Passed 3849 | 64 1156 1330 1299 Spaces Moved 1754 | 35 564 540 615 Core 6 | 5 . 1 . Treads 1748 | 30 564 539 615 Legs . | . . . . Wheels . | . . . . Hover . | . . . . Flight . | . . . . Fastest Speed 50 | 50 160 160 160 Average Speed 172 | 144 160 201 160 Slowest Speed 550 | 160 160 550 160 Overloaded Moves . | . . . . Propulsion Burnouts . | . . . . Robots Hopped . | . . . . Cave-ins Triggered . | . . . . Exploration Rate (%) 51 | 3 87 46 70 Regions Visited 3 Branch Regions 1 Pre-discovered Areas . | . . . . Known Exits Taken 1 | . . 1 . Unknown Exits Taken 2 | 1 1 . . Scrap Searched . | . . . . Spaces Dug 4 | . . 3 1 Terrain Destroyed 8 | . . 7 1 Melee 4 | . . 3 1 Projectile . | . . . . AOE 4 | . . 4 . Terrain Rammed . | . . . . Walls Destroyed . | . . . . Machines Disabled . | . . . . Actions | -11 -10 -9 -9 --------- Run | Yrd Mat Mat Sto Total 2185 | 46 691 660 788 Wait 92 | . 27 26 39 Move 1752 | 34 564 539 615 Hop . | . . . . Pick Up 45 | 6 17 12 10 Fast Attach 17 | 6 1 5 5 Attach 12 | . 2 10 . Detach 2 | . . 2 . Swap 19 | . 2 1 16 Drop 34 | . 11 . 23 Fire 188 | . 67 52 69 Melee 17 | . . 12 5 Ram . | . . . . Kick . | . . . . Crush 5 | . . 1 4 Escape Stasis . | . . . . Rewire 2 | . . . 2 Trap . | . . . . Miscellaneous . | . . . . Route ------- -11/Scrapyard -10/Materials (discovered 4 exits: *Mat x2 / [*Min x2]) -9/Materials (discovered 5 exits: [*Mat] / *Min x2 / *Sto x2) -9/Storage History --------- Turn | Location | Event 5 | -11/Scrapyard | Discovered new exit (range 15) 65 | -11/Scrapyard | Entered Materials 307 | -10/Materials | Build established: Mutant 393 | -10/Materials | Discovered new exit (range 15) 533 | -10/Materials | Discovered new exit (range 5) 800 | -10/Materials | Derelicts attacked the area 913 | -10/Materials | Discovered new exit (range 12) 1218 | -10/Materials | Discovered new exit (range 3) 1221 | -10/Materials | Entered another Materials area 1221 | -9/Materials | Evolved 2 slots: Utility x2 1527 | -9/Materials | Build established: Scavenger-Mutant 1639 | -9/Materials | Discovered new exit (range 15) 1779 | -9/Materials | Identified exit to Mines 1896 | -9/Materials | Core integrity fell below 50% 1946 | -9/Materials | Lost 6 parts (1p1n1u3w) 1954 | -9/Materials | Identified exit to Storage 2249 | -9/Materials | Discovered new exit (range 9) 2551 | -9/Materials | Entered Storage 2679 | -9/Storage | Assisted by bots powering up and referring to "LRC-V3" 2941 | -9/Storage | Lost 8 allies 2957 | -9/Storage | Found Prototype Protection 2957 | -9/Storage | Identified Lgt. Regenerative Plating 3053 | -9/Storage | Met a pair of Derelict thieves 3215 | -9/Storage | Core integrity fell below 20% 3850 | -9/Storage | Destroyed by G-34 Mercenary with Small Laser Last Messages --------------- 03802_ K-01 Serf collects debris. 03802_ Acquired 31 matter. 03804_ Acquired 19 matter. 03804_ R-06 Scavenger collects Lgt. Assault Rifle. 03806_ K-01 Serf collects debris. 03808_ R-06 Scavenger collects Flight Unit. 03809_ K-01 Serf collects debris. 03811_ U-05 Engineer builds a Door. 03812_ K-01 Serf collects debris. 03813_ R-06 Scavenger collects Flight Unit. 03815_ K-01 Serf collects debris. 03832_ G-34 Mercenary destroyed. 03832_ Switching to secondary target: G-34 Mercenary. 03834_ R-06 Scavenger collects Unknown Leg. 03836_ W-16 Scout sends out distress signal. 03842_ System corrupted: Component data lost. 03844_ G-34 Mercenary destroyed. 03846_ Critical hit (Burn: +37). Map ----- +----------------------------------------------------+ | ???????????????????#%![[%# #!!!!#?????# # %### | | ???????????????????##[%[##T######?????# ## ##?# | | ????????????????????#![[############### T### #??? | | ????????????????????#=*=# ######?# #??? | | ????????????????????# # #?????##+#### | | ????????????????????# + #?????# | | ????????????????????# # #?????# | | ????????????????????# # #?????# | | ????????????????????# ####+#############?# ! | | ????????????????????# #??# #??# #?# ] [ | | ????????????????????#^ #??# #??# #?# % | | ????????????????############ #??# #?####### | | ????????????????# [!## #??# #???????? | | ????????????????# [!## #### """" ##??????? | | ????????????????# # + """" #######? | | ????????????????# %^#= ### """" #?# ! ## | | ????????????????# =%+ #?# """" #?# | | ????????????????# """ [# #?# #?# %! | | ????????????????# """ ![# #?#####+####?# ## | | ????????????????# """ =![# #????# #????## ### | | ????????????????######## ## #????# #?????# ## | | ???????????????????????#### #????# #?????# ## | | ??????????????????????????# #????# =#?????# ## | | ?????????????????????????## #???## %##???## ## | | ?????????????????######### ##### #####= # | | ?????????? a%! @ g ==!%%% #= | | ????????????# !%[ gg % %[%[=T%+ | | ????????????# ######### ###g #####*= =# | | ?????????????????????????# #?## ###???## ## | | ?????????????????????????# #??#x#??????# ### | | ?????????????????????????# #??#+######## #?? | | ????????????????????????? #??# # ### | | ????????????????????????? #??# """" # #T# | | ?????????????????????##+###+#####??# ""[*" # + ! | | ?????????????????????# #####["""[[ # ### | | ?????????????????????# / /%"*[""" + #?? | | ?????????????????????# #####!"[="" # #?# | | ?????????????????????# #???# """" # ### | | ?????????????????????# #???# + | | ?????????????????????# #???# # | | ?????????????????????# #???##########/#### | | ?????????????????????# #?????????# ##?? | | ?????????????????????###########?????????# T#?? | | ?????????????????????????????????????????##" "###? | | ?????????????????????????????????????????#! #? | | ?????????????????????????????????????????# !!#? | | ?????????????????????????????????????????#!! ]#? | | ?????????????????????????????????????????#! ! !#? | | ?????????????????????????????????????????########? | | ?????????????????????????????????????????????????? | +----------------------------------------------------+ Best States ------------- Heat Dissipation 42 Energy Generation 14 Energy Capacity 250 Matter Stores 300 Matter Capacity 300 Sight Range 16 Robot Scan Range 14 Terrain Scan Density 10 Additional Mass Support 6 Armor Coverage 150 Evasion (%) 40 Recoil Reduction 2 Item Schematics ----------------- None Robot Schematics ------------------ None Fabricated ------------ Nothing Alien Tech Used ----------------- None Achievements -------------- None Challenges ------------ None Game ------ Seed DynamicCouplerArmor Manual? 0 Play Time 00:40:12 Cumulative 33.0 hours Start 2024.06.14 @ 10:50:08 End 2024.06.14 @ 11:28:07 Sessions 1 Manual Loads 0 Difficulty Rogue Special Mode None Game No. 26 Rogue 26 Adventurer 0 Explorer 0 Win Type - Total 1 Types 1/0/0/0/0/0/0/0/0 Lore% 27 Gallery% 29 Achievement% 30 Wizard Run 0 Options --------- Layout 1 ASCII 0 Keyboard 1 Movement Arrows Keybinds 0 Fullscreen 1 Font 32/SmallcapsGlow Map View 50x35 Zoom Use 0% Tactical HUD 1 Map Filters NONE Filters NONE Steam 0 RUN: e4e29fc7-3bf3-4414-b426-a5706ba3c914